bitfinex/quotes_SOLUSD_20241021
["timestamp","ask_amount","ask_price","bid_price","bid_amount"]
[1729508826655,27.9286,166.42,166.38,15.0257]
[1729508826872,21.9196,166.42,166.38,15.0257]
[1729508827557,6.2383,166.42,166.4,29.786284]
[1729508827868,6.0078,166.45,166.4,29.786284]
[1729508829569,27.596,166.46,166.41,6.0092]
[1729508830580,21.5885,166.46,166.42,23.776884]
[1729508830770,27.5959,166.46,166.42,38.798884]
[1729508830957,21.5885,166.46,166.39,23.776884]
[1729508831159,6.0092,166.41,166.35,6.0111]
[1729508831470,6.0092,166.41,166.36,7.51452461]
[1729508831648,6.0092,166.41,166.37,1.50362461]
[1729508832773,6.0089,166.42,166.37,7.51422461]
[1729508832954,6.0089,166.42,166.37,6.0106]
[1729508833153,6.0089,166.42,166.38,1.50370781]
[1729508834171,6.0089,166.42,166.37,6.0106]
[1729508834369,6.0084,166.44,166.38,6.0102]
[1729508834672,21.5885,166.46,166.39,23.776884]
[1729508834867,27.596,166.46,166.41,6.0092]
[1729508835451,27.596,166.46,166.4,15.0233]
[1729508835652,27.596,166.46,166.42,6.0088]
[1729508836469,21.5885,166.46,166.42,6.0088]
[1729508836674,6.1063,166.46,166.43,23.776884]
[1729508838373,6.1063,166.46,166.43,29.785284]
[1729508840872,12.1137,166.46,166.42,15.0222]
[1729508843966,12.1137,166.46,166.42,21.0308]
[1729508843967,6.1063,166.46,166.42,21.0308]
[1729508845075,6.6020699,166.47,166.42,21.0308]
[1729508848978,0.5948699,166.47,166.46,6.0074]
[1729508849289,0.5948699,166.47,166.46,29.784284]
[1729508853279,0.0948699,166.47,166.46,29.784284]
[1729508859475,6.3082,166.55,166.51,6.0053]
[1729508859672,6.3082,166.55,166.52,6.0051]
[1729508860075,6.3082,166.55,166.51,6.0055]
[1729508861382,6.00194963,166.55,166.51,6.0055]
[1729508861979,6.0049,166.54,166.48,23.776884]
[1729508862387,6.0049,166.54,166.49,6.006]
[1729508862767,6.0049,166.54,166.5,6.006]
[1729508863572,6.0049,166.54,166.48,44.799784]
[1729508863773,6.0049,166.54,166.49,1.50269038]
[1729508864292,16.1039,166.5,166.46,23.776884]
[1729508864486,16.1039,166.5,166.44,15.0197]
[1729508864785,6.0072,166.47,166.42,8.41348997]
[1729508864999,6.0072,166.47,166.43,1.50315495]
[1729508865692,12.5606,166.48,166.43,6.0084]
[1729508866197,6.5539,166.48,166.43,6.0084]
[1729508866571,6.5539,166.48,166.42,15.0221]
[1729508866775,6.0073,166.47,166.42,21.0309]
[1729508869279,6.5539,166.48,166.43,23.776884]
[1729508869600,6.5539,166.48,166.46,15.0184]
[1729508870180,6.5539,166.48,166.44,6.0081]
[1729508870382,6.007,166.47,166.41,6.0092]
[1729508870707,6.007,166.47,166.42,25.28014286]
[1729508870884,6.007,166.47,166.42,23.776884]
[1729508871804,6.007,166.47,166.42,6.0088]
[1729508872303,6.007,166.47,166.43,6.0084]
[1729508872998,6.5539,166.48,166.43,5.0084]
[1729508874077,6.5539,166.48,166.45,6.0076]
[1729508875807,16.1039,166.5,166.46,6.0074]
[1729508876705,16.1039,166.5,166.46,5.0074]
[1729508878207,16.1039,166.5,166.47,1.50304406]
[1729508878713,16.1039,166.5,166.46,5.0074]
[1729508879214,16.1039,166.5,166.47,1.50305156]
[1729508879389,16.1039,166.5,166.46,7.41228249]
[1729508879584,16.1039,166.5,166.47,1.50302592]
[1729508879798,16.1039,166.5,166.46,5.0074]
[1729508880120,16.1039,166.5,166.47,1.50303509]
[1729508880290,16.1039,166.5,166.46,5.0074]
[1729508880491,16.1039,166.5,166.47,1.50305915]
[1729508880704,16.1039,166.5,166.46,5.0074]
[1729508880898,16.1039,166.5,166.47,1.50305692]
[1729508881109,16.1039,166.5,166.46,5.0074]
[1729508881298,16.1039,166.5,166.47,1.50305875]
[1729508881499,16.1039,166.5,166.48,1.50305875]
[1729508881700,16.1039,166.5,166.46,5.0074]
[1729508881907,16.1039,166.5,166.47,1.50305371]
[1729508882109,16.1039,166.5,166.48,1.50305371]
[1729508882304,16.1039,166.5,166.46,7.412294]
[1729508882494,16.1039,166.5,166.47,1.50305956]
[1729508882691,16.1039,166.5,166.48,1.50305956]
[1729508882896,22.11,166.5,166.46,2.404894]
[1729508883196,22.11,166.5,166.47,3.90795092]
[1729508883410,22.11,166.5,166.48,1.50305692]
[1729508883605,22.11,166.5,166.49,1.50305692]
[1729508884415,16.1039,166.5,166.49,1.50305692]
[1729508884914,16.1039,166.5,166.49,1.50305442]
[1729508888491,16.1039,166.5,166.49,1.50304244]
[1729508892217,16.1039,166.5,166.49,3.90790191]
[1729508892611,12.2812,166.52,166.49,3.90790191]
[1729508892925,12.2812,166.52,166.5,1.50304244]
[1729508893219,6.2757,166.52,166.51,1.50300131]
[1729508894214,21.7072,166.54,166.51,1.50300131]
[1729508894420,21.7072,166.54,166.52,6.91340443]
[1729508894624,21.7072,166.54,166.53,3.90770336]
[1729508895213,15.7026,166.54,166.53,6.91329682]
[1729508896608,6.0042,166.55,166.53,6.91329682]
[1729508896811,6.0042,166.55,166.54,3.90770336]
[1729508897129,6.1331,166.57,166.54,6.91317603]
[1729508897298,6.1331,166.57,166.53,0.21243448]
[1729508897299,6.1331,166.57,166.55,6.91317603]
[1729508897624,6.1331,166.57,166.56,3.90770336]
[1729508898921,6.5613,166.62,166.56,6.91283772]
[1729508899103,12.563,166.62,166.58,15.0076]
[1729508899306,6.002,166.61,166.56,6.0037]
[1729508899500,6.5613,166.62,166.59,3.90610002]
[1729508899700,6.5613,166.62,166.54,6.0044]
[1729508899919,21.5657,166.62,166.55,7.12416084]
[1729508900103,6.0045,166.54,166.52,0.21323119]
[1729508900309,6.0045,166.54,166.53,6.91195885]
[1729508900524,6.0042,166.55,166.53,6.91195885]
[1729508900699,6.0042,166.55,166.54,6.91195885]
[1729508900902,6.0042,166.55,166.54,3.90675935]
[1729508904411,6.3511,166.56,166.54,3.90675935]
[1729508904602,6.3511,166.56,166.55,3.90675935]
[1729508906697,6.3511,166.56,166.5,6.0059]
[1729508906903,6.3511,166.56,166.55,2.4042137]
[1729508907106,6.3511,166.56,166.55,3.90684726]
[1729508907302,16.3087,166.6,166.55,3.90684726]
[1729508907303,6.003,166.59,166.55,3.90684726]
[1729508907521,6.003,166.59,166.56,3.90684726]
[1729508907723,6.003,166.59,166.57,3.90684726]
[1729508907916,6.003,166.59,166.58,1.50263356]
[1729508908113,16.3087,166.6,166.58,1.50263356]
[1729508908304,16.3087,166.6,166.55,0.1923003]
[1729508908631,16.3087,166.6,166.56,6.91103017]
[1729508908835,6.0028,166.59,166.57,6.91103017]
[1729508909014,6.0031,166.58,166.54,0.1923003]
[1729508909335,6.0031,166.58,166.55,6.91126375]
[1729508909516,6.0031,166.58,166.56,3.90636647]
[1729508909831,6.5862,166.61,166.57,6.9110862]
[1729508910025,6.5862,166.61,166.58,6.9110862]
[1729508910327,6.5862,166.61,166.55,6.0041]
[1729508910505,6.5862,166.61,166.59,1.50221819]
[1729508910701,6.5862,166.61,166.52,23.776884]
[1729508910923,6.0026,166.6,166.55,0.19261257]
[1729508911125,6.0026,166.6,166.56,6.91022178]
[1729508911330,6.5862,166.61,166.57,9.90905355]
[1729508911535,6.5862,166.61,166.58,3.90575355]
[1729508911708,6.0014,166.63,166.59,3.90575355]
[1729508911909,6.0014,166.63,166.6,1.50217897]
[1729508912207,6.0014,166.63,166.61,1.50217897]
[1729508912425,6.0014,166.63,166.58,3.00441755]
[1729508912614,6.0014,166.63,166.59,3.905733]
[1729508912832,6.0014,166.63,166.6,1.502205]
[1729508913003,6.0014,166.63,166.56,21.0132]
[1729508913004,6.0014,166.63,166.61,1.502205]
[1729508913209,6.0014,166.63,166.56,21.0132]
[1729508913422,6.0014,166.63,166.57,6.91014784]
[1729508913618,6.0014,166.63,166.56,21.0132]
[1729508913619,6.0014,166.63,166.58,3.90573573]
[1729508913819,6.0014,166.63,166.59,3.90573573]
[1729508914022,6.0014,166.63,166.6,1.50220605]
[1729508914334,0.5948699,166.64,166.6,6.0023]
[1729508914567,0.5948699,166.64,166.61,6.90895721]
[1729508914713,0.5948699,166.64,166.62,6.90891167]
[1729508914919,6.5957699,166.64,166.63,3.9053248]
[1729508915236,0.5948699,166.64,166.63,1.50220418]
[1729508916542,6.5957699,166.64,166.63,1.50220418]
[1729508917225,6.5957699,166.64,166.59,3.00374027]
[1729508917425,6.5957699,166.64,166.6,3.90487298]
[1729508917732,6.5957699,166.64,166.61,1.50189434]
[1729508917935,6.5957699,166.64,166.62,1.50189434]
[1729508918121,6.5957699,166.64,166.59,5.40681812]
[1729508918327,6.5957699,166.64,166.6,3.90491738]
[1729508918522,6.5957699,166.64,166.61,1.50188794]
[1729508918725,6.5957699,166.64,166.62,1.50188794]
[1729508918922,6.5957699,166.64,166.6,2.40301922]
[1729508919119,6.5957699,166.64,166.58,3.00378868]
[1729508919120,0.5948699,166.64,166.61,3.90482685]
[1729508919334,0.5948699,166.64,166.62,1.50188654]
[1729508919631,0.5948699,166.64,166.63,1.50188654]
[1729508920228,0.5948699,166.64,166.61,23.776884]
[1729508920412,0.5948699,166.64,166.62,1.50178724]
[1729508920613,0.5948699,166.64,166.61,23.776884]
[1729508920937,0.5948699,166.64,166.62,1.50177422]
[1729508921138,0.5948699,166.64,166.61,6.0016]
[1729508921437,0.5948699,166.64,166.62,25.27861491]
[1729508921635,0.5948699,166.64,166.61,29.778884]
[1729508921842,0.5948699,166.64,166.62,3.90438072]
[1729508922078,0.5948699,166.64,166.61,23.776884]
[1729508922079,0.5948699,166.64,166.63,1.50168489]
[1729508922341,0.5948699,166.64,166.63,6.0013]
[1729508922543,0.5948699,166.64,166.63,1.50168986]
[1729508923514,0.5948699,166.64,166.63,3.90419909]
[1729508923928,0.5948699,166.64,166.63,1.50168986]
[1729508926051,0.5948699,166.64,166.63,25.27857386]
[1729508926341,0.5948699,166.64,166.63,27.68108309]
[1729508926919,0.5948699,166.64,166.63,3.90419909]
[1729508927220,0.5948699,166.64,166.63,1.50168986]
[1729508928040,0.5948699,166.64,166.63,25.27857386]
[1729508930632,0.5948699,166.64,166.63,27.6810664]
[1729508931544,0.5948699,166.64,166.63,25.27857386]
[1729508932349,0.5948699,166.64,166.62,23.776884]
[1729508932549,0.5948699,166.64,166.63,3.90405138]
[1729508932726,0.5948699,166.64,166.63,1.50155772]
[1729508933834,0.5948699,166.64,166.63,25.27844172]
[1729508934035,0.5948699,166.64,166.63,27.68093538]
[1729508935753,0.5948699,166.64,166.63,25.27844172]
[1729508936257,0.5948699,166.64,166.63,1.50156039]
[1729508936435,0.5948699,166.64,166.63,25.27844439]
[1729508937161,0.5948699,166.64,166.63,1.50156039]
[1729508938954,0.5948699,166.64,166.63,31.27974439]
[1729508939261,0.5948699,166.64,166.63,33.68220825]
[1729508939760,0.5948699,166.64,166.63,33.68192787]
[1729508940131,0.5948699,166.64,166.63,36.68479609]
[1729508940659,0.5948699,166.64,166.63,30.68349609]
[1729508940871,0.5948699,166.64,166.63,27.68062787]
[1729508941348,0.5948699,166.64,166.63,3.90374387]
[1729508941542,0.5948699,166.64,166.63,1.50143995]
[1729508942155,0.5948699,166.64,166.6,2.40230392]
[1729508942355,6.9714699,166.64,166.61,1.50178379]
[1729508942533,12.9724699,166.64,166.57,2.40230392]
[1729508942731,12.9724699,166.64,166.58,3.40501106]
[1729508942932,6.9714699,166.64,166.59,1.50192733]
[1729508943158,6.9714699,166.64,166.55,0.1]
[1729508943159,6.9714699,166.64,166.6,1.50192733]
[1729508943335,6.9714699,166.64,166.55,0.1]
[1729508943533,6.9714699,166.64,166.56,1.5019042]
[1729508943742,6.9714699,166.64,166.57,1.5019042]
[1729508943936,6.9714699,166.64,166.55,0.1]
[1729508943937,6.9714699,166.64,166.58,1.5019042]
[1729508944149,6.9714699,166.64,166.59,1.5019042]
[1729508944358,6.9714699,166.64,166.6,1.5019042]
[1729508944570,6.9714699,166.64,166.57,23.776884]
[1729508944762,6.9714699,166.64,166.58,1.50189347]
[1729508944957,6.9714699,166.64,166.57,23.776884]
[1729508944958,6.9714699,166.64,166.59,1.50189347]
[1729508945155,6.9714699,166.64,166.6,1.50189347]
[1729508945351,6.9714699,166.64,166.57,23.776884]
[1729508945535,6.9714699,166.64,166.58,1.5018953]
[1729508945740,6.9714699,166.64,166.59,1.5018953]
[1729508945939,6.9714699,166.64,166.57,23.776884]
[1729508946140,6.9714699,166.64,166.58,1.50186539]
[1729508946356,6.9714699,166.64,166.59,1.50186539]
[1729508946544,6.9714699,166.64,166.6,1.50186539]
[1729508946738,6.9714699,166.64,166.57,23.776884]
[1729508946939,6.9714699,166.64,166.58,1.50188886]
[1729508947157,6.9714699,166.64,166.59,1.50188886]
[1729508947358,6.9714699,166.64,166.6,1.50188886]
[1729508947666,6.0034,166.57,166.52,3.00388663]
[1729508947958,28.0788,166.58,166.53,1.50224461]
[1729508948158,28.0788,166.58,166.54,1.50224461]
[1729508948371,28.0788,166.58,166.49,21.0219]
[1729508948560,28.0788,166.58,166.5,1.50249682]
[1729508948859,22.0754,166.58,166.51,1.50249682]
[1729508949165,22.0754,166.58,166.52,1.50249682]
[1729508949350,22.0754,166.58,166.53,1.50249682]
[1729508949536,22.0754,166.58,166.54,1.50244167]
[1729508949865,22.0754,166.58,166.51,23.776884]
[1729508950170,28.0788,166.58,166.52,1.50244121]
[1729508950456,28.0788,166.58,166.53,1.50244121]
[1729508950658,22.0754,166.58,166.54,1.50244121]
[1729508950848,22.0754,166.58,166.5,6.0058]
[1729508951051,22.0754,166.58,166.51,1.50244308]
[1729508951246,22.0754,166.58,166.52,1.50244308]
[1729508951459,22.0754,166.58,166.53,1.50244308]
[1729508951670,22.0754,166.58,166.51,6.0055]
[1729508951671,22.0754,166.58,166.54,1.50244308]
[1729508951842,22.0754,166.58,166.52,23.776884]
[1729508952044,22.0754,166.58,166.53,1.50241752]
[1729508952341,0.5948699,166.64,166.57,23.776884]
[1729508952547,0.5948699,166.64,166.58,1.50241752]
[1729508952753,0.5948699,166.64,166.59,1.50241752]
[1729508952958,0.5948699,166.64,166.57,23.4152068]
[1729508952959,0.5948699,166.64,166.58,26.1800908]
[1729508953258,0.5948699,166.64,166.58,23.776884]
[1729508953565,0.5948699,166.64,166.59,1.50198345]
[1729508953755,0.5948699,166.64,166.6,1.50198298]
[1729508953943,6.0016,166.62,166.56,2.40324887]
[1729508954275,6.4764,166.61,166.57,3.90537306]
[1729508954569,6.4764,166.61,166.58,1.50212419]
[1729508954745,6.4764,166.61,166.57,2.40324887]
[1729508954946,6.4764,166.61,166.55,32.78474509]
[1729508954947,6.4764,166.61,166.58,1.50213352]
[1729508955161,6.4764,166.61,166.59,1.50213352]
[1729508955368,6.4764,166.61,166.58,2.40324887]
[1729508955546,6.4764,166.61,166.59,1.5020917]
[1729508955748,6.4764,166.61,166.56,3.00406109]
[1729508956051,6.4764,166.61,166.57,3.90553395]
[1729508956251,6.4764,166.61,166.58,1.50213689]
[1729508956468,6.8839277,166.61,166.59,1.50213689]
[1729508956769,16.2595,166.6,166.55,2.40343169]
[1729508957075,6.0034,166.58,166.56,1.50231828]
[1729508957367,6.0035,166.57,166.53,2.40388998]
[1729508957571,6.0035,166.57,166.54,1.50247525]
[1729508957750,6.0035,166.57,166.52,2.40398163]
[1729508957949,6.0035,166.57,166.53,1.5025596]
[1729508958146,6.0035,166.57,166.54,1.5025596]
[1729508958464,6.0035,166.57,166.52,2.4040965]
[1729508958666,6.0035,166.57,166.53,1.50256414]
[1729508958846,16.2595,166.6,166.54,1.50256414]
[1729508958847,6.0031,166.58,166.54,1.50256414]
[1729508959042,6.0031,166.58,166.52,2.40410187]
[1729508959261,6.0034,166.57,166.53,1.502551]
[1729508959567,16.2595,166.6,166.54,1.502551]
[1729508959771,6.0041,166.56,166.49,3.00406109]
[1729508959972,6.0041,166.56,166.5,3.9069264]
[1729508960265,6.0041,166.56,166.48,3.00406109]
[1729508960266,6.0041,166.56,166.51,3.9069264]
[1729508960469,6.0041,166.56,166.52,1.502664]
[1729508960646,6.0041,166.56,166.5,2.4042624]
[1729508960848,6.0041,166.56,166.51,3.90696719]
[1729508961048,6.0041,166.56,166.52,1.50267969]
[1729508961362,6.0041,166.56,166.5,2.4042875]
[1729508961564,6.0041,166.56,166.51,3.90696216]
[1729508961761,6.2402,166.58,166.52,1.50267466]
[1729508961941,6.0044,166.55,166.5,2.4042875]
[1729508962147,6.0044,166.55,166.51,3.90696102]
[1729508962342,6.0044,166.55,166.52,1.50267352]
[1729508962571,5.92433244,166.55,166.5,2.4042875]
[1729508962755,5.92433244,166.55,166.51,3.90695767]
[1729508962952,5.92433244,166.55,166.52,1.50267017]
[1729508963167,6.2402,166.58,166.5,2.4042875]
[1729508963469,6.2402,166.58,166.51,33.68931272]
[1729508963663,6.2402,166.58,166.52,3.90692872]
[1729508963871,6.2402,166.58,166.53,3.90692872]
[1729508964051,6.2402,166.58,166.54,1.50264122]
[1729508964383,6.2402,166.58,166.55,1.50251083]
[1729508964550,6.2402,166.58,166.52,2.40402754]
[1729508964755,6.2402,166.58,166.53,3.90654719]
[1729508964952,6.2402,166.58,166.54,1.50251815]
[1729508965261,12.2436,166.58,166.53,2.40402904]
[1729508965464,12.2436,166.58,166.54,1.50251537]
[1729508965666,6.2402,166.58,166.52,2.40402904]
[1729508965980,6.0045,166.54,166.53,1.50251654]
[1729508966155,22.5358,166.53,166.49,2.40402904]
[1729508966495,6.0056,166.51,166.5,3.90679007]
[1729508966654,6.2133,166.51,166.5,1.50276103]
[1729508968162,6.2133,166.51,166.45,6.0078]
[1729508968361,6.2133,166.51,166.46,3.90754252]
[1729508968576,6.2133,166.51,166.47,3.90754252]
[1729508968757,6.2133,166.51,166.48,1.50290097]
[1729508968958,6.2133,166.51,166.49,1.50290097]
[1729508969159,6.2133,166.51,166.46,2.40464155]
[1729508969358,6.1242,166.57,166.47,3.90754462]
[1729508969584,6.1242,166.57,166.48,3.90754462]
[1729508969585,6.0041,166.56,166.48,3.90754462]
[1729508969877,6.0042,166.55,166.49,3.90754462]
[1729508970076,6.0042,166.55,166.5,3.90754462]
[1729508970378,6.0042,166.55,166.51,1.50290307]
[1729508970572,6.0042,166.55,166.52,1.50290307]
[1729508970877,6.0042,166.55,166.49,2.40464155]
[1729508971175,6.0056,166.51,166.5,3.90729457]
[1729508971378,6.0049,166.53,166.47,2.40464155]
[1729508971686,6.0049,166.53,166.48,1.50287558]
[1729508971854,21.8374,166.55,166.49,1.50287558]
[1729508972055,6.0046,166.54,166.46,2.40464155]
[1729508972357,6.0046,166.54,166.47,1.50292518]
[1729508972572,6.0046,166.54,166.48,1.50292518]
[1729508972772,6.0046,166.54,166.49,1.50292518]
[1729508972989,6.0046,166.54,166.46,2.40464155]
[1729508973156,6.0046,166.54,166.47,1.50293249]
[1729508973479,6.0046,166.54,166.48,1.50293249]
[1729508974379,6.0046,166.54,166.45,6.0077]
[1729508974956,6.0049,166.53,166.45,6.0077]
[1729508975977,6.0049,166.53,166.46,3.9074652]
[1729508976186,6.0049,166.53,166.45,6.0077]
[1729508976664,6.0046,166.54,166.42,23.776884]
[1729508976860,21.8374,166.55,166.42,23.776884]
[1729508977167,6.0049,166.53,166.45,6.0074]
[1729508978991,6.0049,166.53,166.46,3.90746681]
[1729508979159,21.8374,166.55,166.47,18.92506681]
[1729508979355,6.0046,166.54,166.48,1.50287185]
[1729508979582,6.0046,166.54,166.49,1.50287185]
[1729508979881,6.0046,166.54,166.5,1.50287185]
[1729508980058,6.0046,166.54,166.47,17.42219496]
[1729508980258,6.0049,166.53,166.48,1.50281366]
[1729508980460,6.0049,166.53,166.49,1.50281366]
[1729508980660,21.8374,166.55,166.5,1.50281366]
[1729508980968,21.8374,166.55,166.48,6.0067]
[1729508981156,21.8374,166.55,166.49,1.50277617]
[1729508981361,21.8374,166.55,166.5,1.50277617]
[1729508981587,27.8416,166.55,166.48,6.0067]
[1729508981882,27.8416,166.55,166.49,1.50277122]
[1729508982103,21.8374,166.55,166.5,1.50277122]
[1729508982281,21.8374,166.55,166.51,1.50277122]
[1729508982469,21.8374,166.55,166.52,1.50262278]
[1729508982669,21.8374,166.55,166.5,2.40444128]
[1729508982870,21.8374,166.55,166.51,1.50262244]
[1729508983070,21.8374,166.55,166.52,1.50262244]
[1729508983385,6.1924,166.58,166.51,29.782384]
[1729508983581,6.1924,166.58,166.52,1.50258412]
[1729508983757,6.1924,166.58,166.53,1.50258412]
[1729508983964,6.1924,166.58,166.54,1.5024393]
[1729508984280,6.1924,166.58,166.52,6.0052]
[1729508984465,6.1924,166.58,166.53,1.50248246]
[1729508984663,6.1924,166.58,166.54,1.50248246]
[1729508984871,6.1924,166.58,166.52,8.40917194]
[1729508985078,6.1924,166.58,166.53,1.50246297]
[1729508985283,6.1924,166.58,166.54,1.50246297]
[1729508985468,6.1924,166.58,166.52,8.40917194]
[1729508985671,6.1924,166.58,166.53,1.50245427]
[1729508985878,6.1924,166.58,166.54,1.50245427]
[1729508986069,6.1924,166.58,166.52,8.40917194]
[1729508986276,6.1924,166.58,166.53,1.50245149]
[1729508986478,6.1924,166.58,166.54,1.50245149]
[1729508986662,6.1924,166.58,166.52,8.40917194]
[1729508986864,6.1924,166.58,166.53,1.50246545]
[1729508987075,6.1924,166.58,166.54,1.50246545]
[1729508987388,6.1924,166.58,166.52,8.40917194]
[1729508987585,6.1924,166.58,166.53,1.5024632]
[1729508987771,6.1924,166.58,166.54,1.5024632]
[1729508987975,6.1924,166.58,166.52,2.40397194]
[1729508988172,6.1924,166.58,166.51,29.782084]
[1729508988486,6.0038,166.57,166.52,3.90639985]
[1729508988689,6.0038,166.57,166.53,1.50246148]
[1729508988867,6.0038,166.57,166.5,23.42468489]
[1729508989185,6.0038,166.57,166.51,3.90663946]
[1729508989370,6.0038,166.57,166.52,1.50255457]
[1729508989574,6.0038,166.57,166.53,1.50255457]
[1729508989776,6.0038,166.57,166.51,2.40408489]
[1729508989975,6.0038,166.57,166.52,1.50248725]
[1729508990179,6.0038,166.57,166.53,1.50248725]
[1729508990492,6.0038,166.57,166.51,2.40408489]
[1729508990665,6.0038,166.57,166.52,1.50249]
[1729508990866,6.0038,166.57,166.53,1.50249]
[1729508991070,6.0038,166.57,166.51,2.40408489]
[1729508991299,6.0038,166.57,166.52,3.90656665]
[1729508991474,6.0038,166.57,166.53,1.50248176]
[1729508991783,6.0038,166.57,166.54,1.50248176]
[1729508991991,6.0038,166.57,166.51,2.40405268]
[1729508992188,6.0038,166.57,166.5,15.0147]
[1729508992382,6.0038,166.57,166.51,3.90672272]
[1729508992687,6.0038,166.57,166.52,1.50258566]
[1729508992891,6.1924,166.58,166.53,1.50258566]
[1729508993088,6.1924,166.58,166.51,2.40413706]
[1729508993394,6.1924,166.58,166.52,1.50258922]
[1729508993564,6.0034,166.57,166.53,1.50258922]
[1729508993769,6.0034,166.57,166.48,3.18804236]
[1729508993770,6.0034,166.57,166.51,2.40413706]
[1729508993970,6.0034,166.57,166.52,1.50258945]
[1729508994273,6.0034,166.57,166.53,1.50258945]
[1729508994473,6.0034,166.57,166.52,2.40413706]
[1729508994673,6.0038,166.56,166.53,1.50258887]
[1729508994874,6.0035,166.57,166.51,2.40413706]
[1729508995073,6.0035,166.57,166.52,3.90673744]
[1729508995275,6.004,166.56,166.53,1.50260038]
[1729508995478,6.004,166.56,166.51,2.40413706]
[1729508995681,6.004,166.56,166.52,3.90676515]
[1729508995880,6.004,166.56,166.53,1.50260198]
[1729508996081,6.004,166.56,166.51,2.40416317]
[1729508996281,6.004,166.56,166.52,3.90676609]
[1729508996596,6.004,166.56,166.53,1.50260292]
[1729508996777,6.004,166.56,166.54,1.50260292]
[1729508996973,6.004,166.56,166.51,2.40416612]
[1729508997304,6.004,166.56,166.52,3.90677088]
[1729508997474,6.004,166.56,166.53,1.50260476]
[1729508997798,6.004,166.56,166.54,1.50260476]
[1729508997973,6.004,166.56,166.52,2.40416243]
[1729508998175,6.004,166.56,166.53,3.90676637]
[1729508998377,6.004,166.56,166.54,1.50260245]
[1729508998588,6.004,166.56,166.51,5.40936934]
[1729508998790,6.004,166.56,166.52,3.90677013]
[1729508998982,6.004,166.56,166.53,3.90677013]
[1729508999183,6.004,166.56,166.54,1.50260476]
[1729508999377,6.004,166.56,166.55,1.50259512]
[1729509002276,6.004,166.56,166.48,6.0066]
[1729509002481,6.004,166.56,166.51,0.1836986]
[1729509002780,6.004,166.56,166.52,6.91194425]
[1729509002982,6.004,166.56,166.53,6.91194425]
[1729509003185,6.004,166.56,166.54,3.90675587]
[1729509003382,6.004,166.56,166.55,3.90675587]
[1729509004106,6.004,166.56,166.55,1.50259419]
[1729509004277,6.2924,166.58,166.51,3.00560198]
[1729509004278,6.0055,166.52,166.51,3.00560198]
[1729509004485,12.0454,166.52,166.51,3.90731999]
[1729509004882,12.0454,166.52,166.51,1.50281538]
[1729509005484,12.0454,166.52,166.51,1.50309825]
[1729509005898,12.0454,166.52,166.51,3.9078715]
[1729509006499,6.0399,166.52,166.51,3.9078715]
[1729509006691,20.0,166.56,166.51,3.9078715]
[1729509007008,6.004,166.56,166.52,6.91353518]
[1729509007311,21.4317,166.57,166.53,3.9078715]
[1729509007483,21.4317,166.57,166.54,3.9078715]
[1729509007809,21.4317,166.57,166.51,0.1830248]
[1729509007810,27.4352,166.57,166.55,3.4078715]
[1729509007988,27.4352,166.57,166.55,8.71]
[1729509008886,27.4352,166.57,166.51,0.1830248]
[1729509009085,27.4352,166.57,166.52,5.40943894]
[1729509009406,27.4352,166.57,166.53,5.40943726]
[1729509009596,27.4352,166.57,166.54,2.40419434]
[1729509009794,27.4352,166.57,166.55,2.40419434]
[1729509010189,27.4352,166.57,166.51,0.18316555]
[1729509010399,27.4352,166.57,166.52,5.40944557]
[1729509010587,27.4352,166.57,166.53,5.40944557]
[1729509010915,6.0042,166.55,166.54,2.40419803]
[1729509012312,6.0047,166.54,166.51,3.00545977]
[1729509012486,6.0047,166.54,166.52,5.40988388]
[1729509012687,6.0047,166.54,166.53,2.40442411]
[1729509012890,6.0047,166.54,166.53,2.40442376]
[1729509013302,21.4317,166.57,166.53,2.40442376]
[1729509013615,6.0041,166.56,166.54,2.40442376]
[1729509013801,6.0041,166.56,166.5,0.18341109]
[1729509013988,6.0041,166.56,166.51,5.40994475]
[1729509014189,6.0041,166.56,166.52,5.40994475]
[1729509014388,6.0041,166.56,166.53,2.40441989]
[1729509014689,6.0041,166.56,166.54,2.40441989]
[1729509014995,6.0041,166.56,166.5,0.18341109]
[1729509015203,6.0041,166.56,166.51,5.40992014]
[1729509015397,6.0042,166.55,166.52,5.40992014]
[1729509015605,6.0042,166.55,166.53,5.40992014]